[Event "Fagernes Chess Open 2025"]
[Site "Fagernes"]
[Date "2025.04.13"]
[Round "1.19"]
[White "Gilsdottir, Sara"]
[Black "Wen, Liana"]
[Result "1-0"]
[Annotator "NA"]
[ECO "E91"]
[WhiteElo "1738"]
[BlackElo "1404"]
[PlyCount "123"]
[EventDate "2025.04.12"]
[EventCountry "NOR"]
[SourceTitle "playchess.com"]
[Source "ChessBase"]
[SourceQuality "1"]
[TimeControl "40/6000+30:2400+30"]

1. d4 {[%emt 0:00:05]} Nf6 {[%emt 0:00:10]} 2. c4 {[%emt 0:00:13]} g6 {[%emt 0:00:17]} 3. Nc3 {[%emt 0:00:48]} Bg7 {[%emt 0:00:35]} 4. Nf3 {[%emt 0:01:43]} O-O {[%emt 0:01:02]} 5. e4 {[%emt 0:01:49]} d6 {[%emt 0:01:29]} 6. Be2 {[%emt 0:02:22]} Nbd7 {[%emt 0:02:24]} 7. O-O {[%emt 0:01:54]} b6 {[%emt 0:01:42]} 8. Be3 {[%emt 0:05:28]} Bb7 {[%emt 0:02:22]} 9. Qc2 {[%emt 0:02:25]} Rc8 {[%emt 0:03:22]} 10. b4 {[%emt 0:10:29]} c5 {[%emt 0:02:03]} 11. bxc5 {[%emt 0:00:55]} dxc5 {[%emt 0:01:41]} 12. d5 {[%emt 0:01:16]} Qc7 {[%emt 0:06:26]} 13. Nb5 {[%emt 0:02:17]} Qb8 {[%emt 0:01:46]} 14. Rad1 {[%emt 0:03:57]} Rfe8 {[%emt 0:03:07]} 15. Nd2 {[%emt 0:08:06]} a6 {[%emt 0:05:06]} 16. Nc3 {[%emt 0:00:28]} Ne5 {[%emt 0:02:47]} 17. h3 {[%emt 0:05:43]} e6 {[%emt 0:06:07]} 18. f4 {[%emt 0:03:30]} Ned7 {[%emt 0:02:19]} 19. e5 {[%emt 0:02:18]} exd5 {[%emt 0:00:52]} 20. exf6 {[%emt 0:04:00]} Rxe3 {[%emt 0:00:36]} 21. fxg7 {[%emt 0:16:08]} d4 {[%emt 0:04:50]} 22. Ndb1 {[%emt 0:06:58]} Qa8 {[%emt 0:06:06]} 23. Nd5 {[%emt 0:05:18]} Bxd5 {[%emt 0:02:05]} 24. cxd5 {[%emt 0:02:50]} Rce8 {[%emt 0:00:43]} 25. Bf3 {[%emt 0:01:40]} Qd8 {[%emt 0:03:19]} 26. Nd2 {[%emt 0:02:39]} Kxg7 {[%emt 0:07:53]} 27. Nc4 {[%emt 0:03:52]} Rc3 {[%emt 0:00:30]} 28. Qa4 {[%emt 0:03:38]} b5 {[%emt 0:00:31]} 29. Qxa6 {[%emt 0:01:29]} bxc4 {[%emt 0:00:16]} 30. d6 {[%emt 0:02:19]} Nb8 {[%emt 0:01:12]} 31. Qb5 {[%emt 0:02:06]} Re6 {[%emt 0:03:05]} 32. Qxc5 {[%emt 0:01:14]} Rxd6 {[%emt 0:00:48]} 33. Qb4 {[%emt 0:01:07]} Na6 {[%emt 0:03:38]} 34. Qb2 {[%emt 0:01:08]} Qa5 {[%emt 0:04:58]} 35. Rfe1 {[%emt 0:01:38]} Nb4 {[%emt 0:00:35]} 36. Re7 {[%emt 0:03:31]} Qxa2 {[%emt 0:00:49]} 37. Qxb4 {[%emt 0:00:41]} Rf6 {[%emt 0:03:17]} 38. Rxd4 {[%emt 0:00:45]} Rc1+ {[%emt 0:00:51]} 39. Rd1 {[%emt 0:00:28]} c3 {[%emt 0:00:53]} 40. Rxc1 {[%emt 0:00:14]} c2 {[%emt 0:02:35]} 41. Qc3 {[%emt 0:40:26]} Qb1 {[%emt 0:41:39]} 42. Qxc2 {[%emt 0:00:17]} Qb6+ {[%emt 0:00:17]} 43. Qc5 {[%emt 0:00:42]} Qb8 {[%emt 0:01:11]} 44. Qe5 {[%emt 0:00:42]} Qb6+ {[%emt 0:00:44]} 45. Kh2 {[%emt 0:00:18]} Qf2 {[%emt 0:04:42]} 46. Rc6 {[%emt 0:00:53]} Qh4 {[%emt 0:00:43]} 47. Rxf6 {[%emt 0:00:23]} Qxf6 {[%emt 0:00:20]} 48. Qxf6+ {[%emt 0:00:22]} Kxf6 {[%emt 0:00:04]} 49. Ra7 {[%emt 0:00:08]} h5 {[%emt 0:00:47]} 50. g4 {[%emt 0:00:14]} h4 {[%emt 0:00:16]} 51. Kg2 {[%emt 0:00:26]} Kg7 {[%emt 0:00:46]} 52. Kf2 {[%emt 0:00:16]} Kf6 {[%emt 0:01:33]} 53. Ke3 {[%emt 0:00:15]} Ke6 {[%emt 0:01:03]} 54. Ra6+ {[%emt 0:00:32]} Ke7 {[%emt 0:00:44]} 55. Kd4 {[%emt 0:00:24]} Kd7 {[%emt 0:00:56]} 56. Kc5 {[%emt 0:00:27]} Kc7 {[%emt 0:02:12]} 57. Ra7+ {[%emt 0:00:13]} Kb8 {[%emt 0:02:07]} 58. Rxf7 {[%emt 0:00:31]} Kc8 {[%emt 0:01:16]} 59. Kd6 {[%emt 0:00:13]} Kb8 {[%emt 0:00:45]} 60. Kc6 {[%emt 0:00:34]} Ka8 {[%emt 0:00:33]} 61. Kb6+ {[%emt 0:01:04]} Kb8 {[%emt 0:00:09]} 62. Rf8# {[%emt 0:00:30]} 1-0